bitfinex-derivatives/quotes_BNBF0:USTF0_20250128
["timestamp","ask_amount","ask_price","bid_price","bid_amount"]
[1738058656031,0.27223999,675.66,674.27,1.40356984]
[1738058656230,0.27223999,675.65,674.27,1.40356984]
[1738058656536,0.27223999,675.64,674.27,1.40356984]
[1738058656730,0.27223999,675.66,674.27,1.40356984]
[1738058656934,0.27223999,675.65,674.27,1.40356984]
[1738058657131,2.65408733,675.67,674.27,1.40356984]
[1738058657132,0.27223999,675.66,674.27,1.40356984]
[1738058657338,0.27223999,675.65,674.27,1.40356984]
[1738058657537,0.27223999,675.66,674.27,1.40356984]
[1738058657738,0.27223999,675.65,674.27,1.40356984]
[1738058657937,0.27223999,675.66,674.27,1.40356984]
[1738058658134,0.27223999,675.65,674.27,1.40356984]
[1738058658337,0.27223999,675.64,674.27,1.40356984]
[1738058658537,0.27223999,675.66,674.27,1.40356984]
[1738058658738,1.37974085,675.65,674.27,0.29661708]
[1738058659036,0.27223999,675.64,674.27,0.29661708]
[1738058659437,0.27224007,675.63,674.27,0.29661708]
[1738058659636,0.27224007,675.64,674.27,0.29661708]
[1738058659837,0.27224007,675.63,674.27,0.29661708]
[1738058660041,0.27224007,675.62,674.27,0.29661708]
[1738058660340,0.27224007,675.61,674.27,0.29661708]
[1738058660538,1.10750086,675.65,674.27,0.29661708]
[1738058660539,0.27224007,675.6,674.27,0.29661708]
[1738058660739,0.27224007,675.59,674.27,0.29661708]
[1738058660939,1.54660366,675.61,674.27,0.29661708]
[1738058661240,0.27223938,675.6,674.27,0.29661708]
[1738058662242,0.27223938,675.6,674.29,1.10695276]
[1738058662538,0.27223938,675.6,674.3,0.29660388]
[1738058665342,0.27223938,675.6,674.3,1.40355664]
[1738058666140,0.27223883,675.59,674.3,1.40355664]
[1738058666340,0.27223883,675.6,674.3,1.40355664]
[1738058666540,0.27223883,675.59,674.3,1.40355664]
[1738058666740,0.27223883,675.58,674.3,1.40355664]
[1738058667041,0.27223883,675.57,674.3,1.40355664]
[1738058667241,0.27223883,675.56,674.3,1.40355664]
[1738058667443,0.27223883,675.6,674.3,1.40355664]
[1738058667643,0.27223883,675.59,674.3,1.40355664]
[1738058667942,1.10750086,675.56,674.37,1.10695276]
[1738058668141,0.27223883,675.55,674.37,1.10695276]
[1738058669438,1.10750086,675.56,674.37,1.10695276]
[1738058669644,0.27222453,675.55,674.37,1.10695276]
[1738058670143,0.27222453,675.55,674.4,1.10695276]
[1738058670345,0.27222453,675.54,674.4,1.10695276]
[1738058670542,0.27222453,675.57,674.4,1.10695276]
[1738058670741,0.27222453,675.56,674.4,1.10695276]
[1738058670940,0.27222453,675.57,674.4,1.10695276]
[1738058671140,0.27222381,675.56,674.4,1.10695276]
[1738058671340,0.27222381,675.57,674.4,1.10695276]
[1738058671537,0.27222381,675.56,674.4,1.10695276]
[1738058671741,0.27222381,675.55,674.4,1.10695276]
[1738058672037,0.27222381,675.54,674.4,1.10695276]
[1738058672240,0.27222381,675.53,674.4,1.10695276]
[1738058672438,0.27222381,675.57,674.4,1.10695276]
[1738058672641,0.27222381,675.56,674.4,1.10695276]
[1738058672843,1.54660366,675.61,674.3,0.29660388]
[1738058672844,1.3797292,675.55,674.44,1.10695276]
[1738058673143,0.27222834,675.54,674.44,1.10695276]
[1738058673342,0.27222834,675.54,674.3,0.29660388]
[1738058673538,0.27222834,675.6,674.3,0.29660388]
[1738058673735,0.27222834,675.59,674.3,0.29660388]
[1738058674043,0.27222834,675.58,674.3,0.29660388]
[1738058674239,0.27222834,675.57,674.3,0.29660388]
[1738058674441,0.27222834,675.6,674.3,0.29660388]
[1738058674742,0.27222834,675.59,674.3,0.29660388]
[1738058674938,0.27222834,675.58,674.3,0.29660388]
[1738058675142,0.27222834,675.57,674.3,0.29660388]
[1738058675343,0.27222834,675.6,674.3,0.29660388]
[1738058675544,0.27222834,675.59,674.3,0.29660388]
[1738058675743,0.27222834,675.6,674.3,0.29660388]
[1738058676140,1.54660366,675.61,674.3,0.29660388]
[1738058676348,0.27222437,675.6,674.3,0.29660388]
[1738058676646,1.10978383,675.49,674.49,1.10986001]
[1738058676846,0.27222437,675.48,674.49,1.10986001]
[1738058677942,0.27223472,675.47,674.49,1.10986001]
[1738058678141,0.27223472,675.48,674.49,1.10986001]
[1738058678446,0.27223472,675.47,674.49,1.10986001]
[1738058678646,0.27223472,675.48,674.49,1.10986001]
[1738058678843,0.27223472,675.47,674.49,1.10986001]
[1738058679044,0.27223472,675.46,674.49,1.10986001]
[1738058679243,0.27223472,675.48,674.49,1.10986001]
[1738058679446,0.27223472,675.47,674.49,1.10986001]
[1738058679750,1.10978383,675.43,674.55,1.10986001]
[1738058680048,0.27223472,675.42,674.55,1.10986001]
[1738058681144,1.10978383,675.43,674.55,1.10986001]
[1738058683357,1.10978383,675.43,674.51,1.10986001]
[1738058683550,0.27226124,675.42,674.51,1.10986001]
[1738058686057,0.27226124,675.42,674.43,1.10986001]
[1738058686058,1.10978383,675.39,674.43,1.10986001]
[1738058686250,0.27226124,675.38,674.43,1.10986001]
[1738058687356,1.10978383,675.39,674.43,1.10986001]
[1738058688757,1.54662657,675.55,674.36,1.10986001]
[1738058688758,1.10978383,675.45,674.36,1.10986001]
[1738058689056,0.27226704,675.44,674.36,1.10986001]
[1738058691453,0.27226722,675.43,674.36,1.10986001]
[1738058691662,0.27226722,675.42,674.33,1.10986001]
[1738058691959,0.27226722,675.41,674.33,1.10986001]
[1738058692157,0.27226722,675.4,674.33,1.10986001]
[1738058692360,1.10978383,675.49,674.33,1.10986001]
[1738058692560,0.2722729,675.48,674.33,1.10986001]
[1738058694559,0.2722729,675.48,674.3,0.29660388]
[1738058694560,1.38205673,675.48,674.3,0.29660388]
[1738058694856,0.27225799,675.47,674.3,0.29660388]
[1738058697768,0.27225799,675.47,674.34,1.10986001]
[1738058697966,0.27225799,675.46,674.34,1.10986001]
[1738058698162,0.27225799,675.49,674.34,1.10986001]
[1738058698366,0.27225799,675.48,674.34,1.10986001]
[1738058698662,0.27225799,675.47,674.34,1.10986001]
[1738058698862,0.27225799,675.49,674.34,1.10986001]
[1738058699065,0.27225799,675.48,674.34,1.10986001]
[1738058699365,0.27225799,675.47,674.34,1.10986001]
[1738058699561,1.10978383,675.5,674.34,1.10986001]
[1738058699562,0.27225799,675.46,674.34,1.10986001]
[1738058699768,0.27225799,675.49,674.34,1.10986001]
[1738058699964,0.27225492,675.48,674.34,1.10986001]
[1738058700168,0.27225492,675.48,674.3,0.29660388]
[1738058700169,1.10978383,675.48,674.36,1.10986001]
[1738058700468,0.27225492,675.47,674.36,1.10986001]
[1738058703169,1.10978383,675.48,674.36,1.10986001]
[1738058703370,0.27225586,675.47,674.36,1.10986001]
[1738058703568,0.27225586,675.47,674.3,0.29660388]
[1738058703763,0.27225586,675.46,674.3,0.29660388]
[1738058703964,0.27225586,675.45,674.3,0.29660388]
[1738058704169,2.6564104,675.55,674.3,0.29660388]
[1738058704364,0.27225975,675.54,674.3,0.29660388]
[1738058704868,2.6564104,675.55,674.3,0.29660388]
[1738058705065,0.27225969,675.54,674.3,0.29660388]
[1738058706874,1.10978383,675.53,674.3,0.29660388]
[1738058707173,0.27225969,675.52,674.31,1.10986001]
[1738058708270,1.10978383,675.53,674.31,1.10986001]
[1738058708573,0.2722684,675.52,674.31,1.10986001]
[1738058710075,1.10978383,675.5,674.31,1.10986001]
[1738058710271,0.27226895,675.49,674.31,1.10986001]
[1738058711775,0.27226205,675.48,674.31,1.10986001]
[1738058711976,0.27226205,675.49,674.31,1.10986001]
[1738058712274,0.27226205,675.48,674.31,1.10986001]
[1738058712476,0.27226205,675.47,674.31,1.10986001]
[1738058712673,1.10978383,675.44,674.36,1.10986001]
[1738058712872,0.27226205,675.43,674.36,1.10986001]
[1738058714777,0.27226205,675.43,674.41,1.10986001]
[1738058715076,0.27226477,675.42,674.41,1.10986001]
[1738058715277,0.27226477,675.41,674.41,1.10986001]
[1738058715473,0.27226477,675.4,674.41,1.10986001]
[1738058715679,1.10978383,675.44,674.41,1.10986001]
[1738058715680,0.27226226,675.39,674.41,1.10986001]
[1738058716080,0.27226226,675.43,674.41,1.10986001]
[1738058716380,0.27226226,675.42,674.41,1.10986001]
[1738058716576,0.27226226,675.41,674.41,1.10986001]
[1738058716777,0.27226226,675.4,674.41,1.10986001]
[1738058716973,1.10978383,675.44,674.41,1.10986001]
[1738058717178,0.2722644,675.43,674.41,1.10986001]
[1738058717381,1.10978383,675.41,674.44,1.10986001]
[1738058717683,0.2722644,675.4,674.44,1.10986001]
[1738058718180,1.10978383,675.41,674.44,1.10986001]
[1738058718381,0.2722602,675.4,674.44,1.10986001]
[1738058720282,1.38204403,675.4,674.46,1.10986001]
[1738058720482,0.27226582,675.39,674.46,1.10986001]
[1738058722180,0.27226885,675.38,674.46,1.10986001]
[1738058722382,0.27226885,675.37,674.46,1.10986001]
[1738058723781,1.10978383,675.38,674.46,1.10986001]
[1738058724080,0.27226923,675.37,674.46,1.10986001]
[1738058725274,1.10978383,675.38,674.46,1.10986001]
[1738058726584,1.10978383,675.36,674.46,1.10986001]
[1738058728685,0.2722709,675.35,674.46,1.10986001]
[1738058728884,1.10978383,675.36,674.46,1.10986001]
[1738058729082,0.27228304,675.35,674.46,1.10986001]
[1738058729383,0.27228304,675.35,674.45,1.10986001]
[1738058729582,1.10978383,675.4,674.45,1.10986001]
[1738058729583,0.27228304,675.34,674.45,1.10986001]
[1738058729784,0.27228304,675.39,674.45,1.10986001]
[1738058730778,0.27231735,675.38,674.45,1.10986001]
[1738058730983,0.27231735,675.37,674.45,1.10986001]
[1738058731183,0.27231735,675.36,674.45,1.10986001]
[1738058731384,0.27231735,675.35,674.45,1.10986001]
[1738058731582,0.27231735,675.39,674.45,1.10986001]
[1738058731787,0.27231735,675.38,674.45,1.10986001]
[1738058731982,0.27231735,675.37,674.45,1.10986001]
[1738058732185,1.10978383,675.28,674.35,1.10986001]
[1738058732486,0.27231735,675.27,674.35,1.10986001]
[1738058737189,0.27231735,675.27,674.3,0.29660388]
[1738058737389,0.27231735,675.3,674.3,0.29660388]
[1738058737584,0.27231735,675.29,674.3,0.29660388]
[1738058737891,0.27231735,675.28,674.3,0.29660388]
[1738058738189,0.27231735,675.27,674.3,0.29660388]
[1738058738392,0.27231735,675.3,674.3,0.29660388]
[1738058738586,0.27231735,675.29,674.3,0.29660388]
[1738058738783,1.10978383,675.31,674.3,0.29660388]
[1738058738784,0.27231735,675.28,674.3,0.29660388]
[1738058738989,0.27231735,675.27,674.3,0.29660388]
[1738058739189,0.27231735,675.3,674.3,0.29660388]
[1738058739392,0.27233795,675.29,674.3,0.29660388]
[1738058739589,0.27233795,675.28,674.3,0.29660388]
[1738058739787,1.54683281,675.44,674.3,0.29660388]
[1738058739788,0.27233795,675.27,674.3,0.29660388]
[1738058739991,0.27233795,675.4,674.3,0.29660388]
[1738058740292,0.27233795,675.39,674.3,0.29660388]
[1738058740592,0.27233795,675.38,674.3,0.29660388]
[1738058741091,0.27233482,675.37,674.3,0.29660388]
[1738058741292,0.27233482,675.36,674.3,0.29660388]
[1738058741491,0.27233482,675.35,674.3,0.29660388]
[1738058741692,0.27233482,675.38,674.3,0.29660388]
[1738058741887,0.27233482,675.37,674.3,0.29660388]
[1738058742092,0.27233482,675.38,674.3,0.29660388]
[1738058742292,0.27233482,675.37,674.3,0.29660388]
[1738058742492,0.27233482,675.36,674.3,0.29660388]
[1738058742716,1.54715947,675.39,674.3,0.29660388]
[1738058742895,0.27233707,675.38,674.3,0.29660388]
[1738058744595,0.27233596,675.37,674.3,0.29660388]
[1738058744798,0.27233596,675.38,674.3,0.29660388]
[1738058745098,0.27233596,675.37,674.3,0.29660388]
[1738058745292,0.27233596,675.38,674.3,0.29660388]
[1738058745496,0.27233596,675.37,674.3,0.29660388]
[1738058745696,0.27233596,675.36,674.3,0.29660388]
[1738058745996,0.27233596,675.35,674.3,0.29660388]
[1738058746198,0.27233596,675.38,674.3,0.29660388]
[1738058746499,0.27233596,675.37,674.3,0.29660388]
[1738058746798,0.27233596,675.36,674.3,0.29660388]
[1738058747096,0.27233596,675.35,674.3,0.29660388]
[1738058747293,0.27233596,675.38,674.3,0.29660388]
[1738058747496,0.27233596,675.37,674.3,0.29660388]
[1738058747690,0.27233596,675.36,674.3,0.29660388]
[1738058747891,0.27233596,675.38,674.3,0.29660388]
[1738058748095,0.27233596,675.37,674.3,0.29660388]
[1738058748296,0.27233596,675.36,674.3,0.29660388]
[1738058748499,0.27233596,675.38,674.3,0.29660388]
[1738058748692,0.27233596,675.37,674.3,0.29660388]
[1738058748893,1.54715947,675.39,674.3,0.29660388]
[1738058748894,0.27233596,675.38,674.3,0.29660388]
[1738058749097,0.27233596,675.37,674.3,0.29660388]
[1738058749292,0.27233596,675.38,674.3,0.29660388]
[1738058749596,0.27233596,675.37,674.3,0.29660388]
[1738058749796,0.27233596,675.36,674.3,0.29660388]
[1738058749997,0.27233596,675.38,674.3,0.29660388]
[1738058750198,0.27233596,675.37,674.3,0.29660388]
[1738058750392,0.27233596,675.38,674.3,0.29660388]
[1738058750592,0.27233596,675.37,674.3,0.29660388]
[1738058750898,1.54715947,675.39,674.3,0.29660388]
[1738058750899,0.27233596,675.36,674.3,0.29660388]
[1738058751200,1.54715947,675.39,674.3,0.29660388]
[1738058751399,0.27233601,675.38,674.3,0.29660388]
[1738058752301,1.54715947,675.39,674.3,0.29660388]
[1738058752497,1.10978383,675.36,674.3,0.29660388]
[1738058752694,0.27233751,675.35,674.3,0.29660388]
[1738058753798,1.10978383,675.36,674.3,0.29660388]
[1738058755002,1.10978383,675.37,674.3,0.29660388]
[1738058755400,0.29610766,675.43,674.3,0.29660388]
[1738058755597,0.27228098,675.42,674.3,0.29660388]
[1738058756300,0.27228359,675.41,674.3,0.29660388]
[1738058756503,0.27228359,675.42,674.3,0.29660388]
[1738058756705,0.27228359,675.41,674.3,0.29660388]
[1738058756900,0.27228359,675.4,674.3,0.29660388]
[1738058757098,0.29610766,675.43,674.3,0.29660388]
[1738058757301,0.27228244,675.42,674.3,0.29660388]
[1738058760112,0.29610766,675.43,674.3,0.29660388]
[1738058761111,0.27228228,675.42,674.3,0.29660388]
[1738058764215,0.27228228,675.42,674.3,1.40446959]
[1738058764713,0.29610766,675.43,674.3,1.40446959]
[1738058765012,0.27226864,675.42,674.3,1.40446959]
[1738058767310,0.27226864,675.42,674.31,1.10786571]
[1738058769717,0.29610766,675.43,674.3,0.29660388]
[1738058770016,0.27227613,675.42,674.3,0.29660388]
[1738058772315,0.27227613,675.42,674.31,1.10786571]
[1738058774221,1.5469073,675.41,674.31,1.10786571]
[1738058774420,0.27227613,675.4,674.31,1.10786571]
[1738058775522,0.27227613,675.4,674.33,1.10786571]
[1738058776123,2.65363749,675.41,674.33,1.10786571]
[1738058776523,0.27230387,675.39,674.33,1.10786571]
[1738058776725,0.27230387,675.38,674.33,1.10786571]
[1738058776925,0.27230387,675.4,674.33,1.10786571]
[1738058777125,0.27230387,675.39,674.33,1.10786571]
[1738058777428,2.65363749,675.41,674.33,1.10786571]
[1738058777429,0.27230387,675.38,674.33,1.10786571]
[1738058777620,0.27230387,675.37,674.33,1.10786571]
[1738058777824,0.27230387,675.4,674.33,1.10786571]
[1738058778021,0.27230387,675.39,674.33,1.10786571]
[1738058778224,0.27230387,675.38,674.33,1.10786571]
[1738058778427,0.27230387,675.4,674.33,1.10786571]
[1738058778724,0.27230387,675.39,674.3,0.29660388]
[1738058778922,0.27230387,675.38,674.3,0.29660388]
[1738058779123,0.27230387,675.37,674.3,0.29660388]
[1738058779321,0.27230387,675.36,674.3,0.29660388]
[1738058779523,0.27230387,675.35,674.3,0.29660388]
[1738058779724,0.27230387,675.4,674.3,0.29660388]
[1738058779928,0.27230387,675.39,674.3,0.29660388]
[1738058780127,0.27230387,675.4,674.3,0.29660388]
[1738058780326,0.27230387,675.39,674.3,0.29660388]
[1738058780525,0.27230387,675.38,674.3,0.29660388]
[1738058780727,0.27230387,675.4,674.3,0.29660388]
[1738058780926,0.27230387,675.39,674.3,0.29660388]
[1738058781122,0.27230387,675.38,674.3,0.29660388]
[1738058781326,0.27230387,675.4,674.3,0.29660388]
[1738058781523,0.27230387,675.39,674.3,0.29660388]
[1738058781724,0.27230387,675.4,674.3,0.29660388]
[1738058781925,1.5469073,675.41,674.3,0.29660388]
[1738058781926,0.27230387,675.39,674.3,0.29660388]
[1738058782127,0.27230387,675.4,674.3,0.29660388]
[1738058782429,0.27230387,675.39,674.3,0.29660388]
[1738058782629,0.27230387,675.4,674.3,0.29660388]
[1738058783431,1.5469073,675.41,674.3,0.29660388]
[1738058783626,0.27228296,675.4,674.3,0.29660388]
[1738058783823,0.29610766,675.43,674.3,0.29660388]
[1738058785231,1.10673019,675.47,674.3,0.29660388]
[1738058787727,1.10673019,675.48,674.3,0.29660388]
[1738058789929,1.10673019,675.48,674.54,1.10786571]
[1738058790132,1.54658647,675.7,674.54,1.10786571]
[1738058790331,0.27217513,675.69,674.54,1.10786571]
[1738058791631,1.54658647,675.7,674.54,1.10786571]
[1738058791835,0.27218003,675.69,674.54,1.10786571]
[1738058792440,0.27218003,675.69,674.44,1.10786571]
[1738058793441,0.27218113,675.68,674.44,1.10786571]
[1738058793641,0.27218113,675.67,674.44,1.10786571]
[1738058793836,1.54658647,675.7,674.44,1.10786571]
[1738058793837,0.27218113,675.66,674.44,1.10786571]
[1738058794038,0.27218113,675.65,674.44,1.10786571]
[1738058794340,0.27218113,675.64,674.44,1.10786571]
[1738058794534,0.27218113,675.63,674.44,1.10786571]
[1738058794734,0.27218113,675.69,674.44,1.10786571]
[1738058794938,0.27217306,675.68,674.44,1.10786571]
[1738058795233,0.27217306,675.67,674.44,1.10786571]
[1738058795435,0.27217306,675.66,674.44,1.10786571]
[1738058795635,0.27217306,675.65,674.44,1.10786571]
[1738058796039,0.27217306,675.64,674.45,0.29653791]
[1738058796336,0.27217306,675.63,674.45,0.29653791]
[1738058796535,0.27217306,675.73,674.45,0.29653791]
[1738058799835,1.54627151,675.74,674.45,0.29653791]
[1738058800037,0.27215336,675.73,674.45,0.29653791]
[1738058800242,1.54617991,675.83,674.45,0.29653791]
[1738058800442,0.27215336,675.82,674.45,0.29653791]
[1738058803249,0.27212875,675.81,674.45,0.29653791]
[1738058803450,0.27212875,675.8,674.45,0.29653791]
[1738058803646,0.27212875,675.82,674.45,0.29653791]
[1738058803852,0.27212875,675.81,674.45,0.29653791]
[1738058804046,0.27212875,675.82,674.45,0.29653791]
[1738058804250,0.27212875,675.81,674.45,0.29653791]
[1738058804450,0.27212875,675.8,674.45,0.29653791]
[1738058804646,0.27212875,675.79,674.45,0.29653791]
[1738058804852,0.2721071,675.78,674.45,0.29653791]
[1738058805148,0.2721071,675.77,674.45,0.29653791]
[1738058805353,0.2721071,675.89,674.45,0.29653791]
[1738058805651,0.2721071,675.88,674.45,0.29653791]
[1738058805846,0.2721071,675.89,674.45,0.29653791]
[1738058806050,0.2721071,675.88,674.45,0.29653791]
[1738058806251,0.2721071,675.87,674.45,0.29653791]
[1738058806552,0.27209594,675.86,674.45,0.29653791]
[1738058806753,0.27209594,675.85,674.45,0.29653791]
[1738058806949,1.54591661,676.01,674.45,0.29653791]
[1738058807150,0.27209594,676.0,674.45,0.29653791]
[1738058807353,0.27209594,676.0,674.47,1.10786571]
[1738058807546,0.27209594,676.0,674.49,0.29652033]
[1738058810554,0.27209594,676.0,674.5,1.10786571]
[1738058810854,0.27209594,676.0,674.52,0.29650714]
[1738058812554,0.27208445,675.99,674.52,0.29650714]
[1738058812854,0.27208445,675.98,674.52,0.29650714]
[1738058813049,0.27208445,676.0,674.52,0.29650714]
[1738058813254,0.27208445,675.99,674.52,0.29650714]
[1738058813453,0.27208445,675.98,674.52,0.29650714]
[1738058813653,0.27208445,676.0,674.52,0.29650714]
[1738058813957,0.27208445,675.99,674.52,0.29650714]
[1738058814256,0.27208445,675.98,674.52,0.29650714]
[1738058814451,1.54591661,676.01,674.52,0.29650714]
[1738058814452,0.27208445,675.97,674.52,0.29650714]
[1738058814649,0.27208445,676.0,674.52,0.29650714]
[1738058814852,0.27208445,675.99,674.52,0.29650714]
[1738058815049,0.27208445,675.98,674.52,0.29650714]
[1738058815255,0.27208445,676.0,674.52,0.29650714]
[1738058815455,0.27208445,675.99,674.52,0.29650714]
[1738058815648,0.27208445,676.0,674.52,0.29650714]
[1738058815854,0.27208445,675.99,674.52,0.29650714]
[1738058816050,0.27208445,675.98,674.52,0.29650714]
[1738058816249,0.27208445,676.0,674.52,0.29650714]
[1738058817357,0.27209106,675.99,674.54,1.10786571]
[1738058817657,0.27209106,675.98,674.55,0.29649395]
[1738058817850,0.27209106,675.97,674.55,0.29649395]
[1738058818049,0.27209106,675.96,674.55,0.29649395]
[1738058818255,0.27209106,675.95,674.55,0.29649395]
[1738058818553,0.27209106,675.94,674.55,0.29649395]
[1738058818755,0.27209106,676.16,674.55,0.29649395]
[1738058818956,1.54584222,675.94,674.55,0.29649395]
[1738058819257,0.27209106,675.93,674.55,0.29649395]
[1738058819459,0.27209106,675.92,674.55,0.29649395]
[1738058819653,0.27208977,675.91,674.55,0.29649395]
[1738058819858,0.27208977,675.92,674.55,0.29649395]
[1738058820058,0.27208977,675.92,674.56,1.10786571]
[1738058820251,0.27208977,675.92,674.57,0.29648516]
[1738058821358,1.54588227,675.93,674.57,0.29648516]
[1738058821556,0.27212493,675.92,674.57,0.29648516]
[1738058826265,1.54588227,675.93,674.57,0.29648516]
[1738058826266,0.27212019,675.91,674.57,0.29648516]
[1738058826466,0.27212019,675.92,674.57,0.29648516]
[1738058826659,0.27212019,675.91,674.57,0.29648516]
[1738058826863,0.27212019,675.9,674.57,0.29648516]
[1738058827166,0.27212019,675.89,674.57,0.29648516]
[1738058827465,0.27212019,675.88,674.57,0.29648516]
[1738058827665,0.27212019,675.92,674.57,0.29648516]
[1738058827866,1.54588227,675.93,674.57,0.29648516]
[1738058828066,0.27211623,675.92,674.57,0.29648516]
[1738058829662,0.27211623,676.05,674.57,0.29648516]
[1738058829968,1.54585366,676.01,674.57,0.29648516]
[1738058830261,0.27211623,676.0,674.57,0.29648516]
[1738058830871,0.27211623,675.99,674.57,0.29648516]
[1738058831068,0.27211623,676.0,674.57,0.29648516]
[1738058831269,0.27211623,675.99,674.57,0.29648516]
[1738058831463,0.27211623,676.0,674.57,0.29648516]
[1738058831668,0.27211623,675.99,674.57,0.29648516]
[1738058831868,0.27211623,675.98,674.57,0.29648516]
[1738058832064,0.27211623,675.97,674.57,0.29648516]
[1738058832268,0.27211623,676.0,674.57,0.29648516]
[1738058832469,0.27211623,675.99,674.57,0.29648516]
[1738058832772,0.29579235,676.15,674.57,0.29648516]
[1738058832773,1.10673019,675.96,674.81,1.10786571]
[1738058835671,1.54573922,676.09,674.57,0.29648516]
[1738058835672,1.54573922,676.09,674.75,1.10786571]
[1738058835868,0.27204679,676.08,674.76,0.29640168]
[1738058836471,1.54573922,676.09,674.76,0.29640168]
[1738058836668,0.27204075,676.08,674.76,0.29640168]
[1738058838168,0.27205544,676.07,674.76,0.29640168]
[1738058838366,0.27205544,676.06,674.78,1.10786571]
[1738058838570,0.27205544,676.05,674.78,1.4042586]
[1738058838769,0.27205544,676.04,674.78,1.4042586]
[1738058838974,0.27205544,676.03,674.78,1.4042586]
[1738058839173,1.54573922,676.09,674.78,1.4042586]
[1738058839369,0.27204733,676.08,674.78,1.4042586]
[1738058839769,0.27204382,676.07,674.78,1.4042586]
[1738058840068,0.27204382,676.06,674.78,1.4042586]
[1738058840374,0.27204382,676.05,674.78,1.4042586]
[1738058840576,0.27207261,676.08,674.78,1.4042586]
[1738058841376,1.54573922,676.09,674.78,1.4042586]
[1738058841677,0.2720773,676.08,674.78,1.4042586]
[1738058842178,0.2720773,676.08,674.78,0.29639289]
[1738058842376,0.29582735,676.07,674.78,0.29639289]
[1738058842578,0.2720773,676.06,674.78,0.29639289]
[1738058842778,0.56790903,676.06,674.78,0.29639289]
[1738058842978,0.2720773,676.05,674.78,0.29639289]
[1738058843172,0.27208493,676.04,674.78,0.29639289]
[1738058843372,0.27208493,676.05,674.78,0.29639289]
[1738058843579,0.27208493,676.04,674.78,0.29639289]
[1738058843773,0.27208493,676.05,674.78,0.29639289]
[1738058843973,0.56792541,676.04,674.78,0.29639289]
[1738058844175,0.29584485,676.03,674.78,0.29639289]
[1738058844374,0.27208493,676.02,674.78,0.29639289]
[1738058844781,1.84164433,676.01,674.78,0.29639289]
[1738058844974,0.27212553,676.0,674.78,0.29639289]
[1738058846083,0.29586236,675.99,674.78,0.29639289]
[1738058846381,0.27212553,675.98,674.78,0.29639289]
[1738058846581,0.29587111,675.97,674.78,0.29639289]
[1738058846775,0.27212553,675.96,674.78,0.29639289]
[1738058846978,0.29587987,675.95,674.78,0.29639289]
[1738058847280,0.27212553,675.94,674.78,0.29639289]
[1738058847475,0.29588862,675.93,674.78,0.29639289]
[1738058847677,0.27212553,675.92,674.78,0.29639289]
[1738058848180,1.37885572,675.92,674.78,0.29639289]
[1738058848377,0.27212553,675.91,674.78,0.29639289]
[1738058850675,1.10673019,675.87,674.78,0.29639289]
[1738058850883,0.27212553,675.86,674.78,0.29639289]
[1738058851383,1.10673019,675.87,674.78,0.29639289]
[1738058851581,0.27214774,675.86,674.78,0.29639289]
[1738058853884,1.37887793,675.86,674.78,0.29639289]
[1738058854183,0.27214774,675.85,674.78,0.29639289]
[1738058854981,1.54606542,675.84,674.78,0.29639289]
[1738058855180,0.27214774,675.83,674.78,0.29639289]
[1738058856885,1.10673019,675.82,674.78,0.29639289]
[1738058857076,0.27214774,675.81,674.78,0.29639289]
[1738058857984,1.10673019,675.82,674.78,0.29639289]
[1738058858184,0.27215656,675.81,674.78,0.29639289]
[1738058860183,0.27215656,675.83,674.78,0.29639289]
[1738058860382,1.54606542,675.84,674.78,0.29639289]
[1738058860383,0.27215656,675.82,674.78,0.29639289]
[1738058860581,1.54606542,675.84,674.78,0.29639289]
[1738058860582,0.27215656,675.83,674.78,0.29639289]
[1738058860887,0.27215656,675.82,674.78,0.29639289]
[1738058861090,0.27215656,675.81,674.78,0.29639289]
[1738058861387,0.27215656,675.8,674.78,0.29639289]
[1738058861589,0.27215656,675.79,674.78,0.29639289]
[1738058861789,0.27215656,675.78,674.78,0.29639289]
[1738058862090,0.27215656,675.77,674.78,0.29639289]
[1738058862283,0.27215656,675.83,674.78,0.29639289]
[1738058862482,0.27215656,675.82,674.78,0.29639289]
[1738058862685,0.27215656,675.83,674.78,0.29639289]
[1738058862881,1.54606542,675.84,674.78,0.29639289]
[1738058863186,0.27215939,675.83,674.78,0.29639289]
[1738058864991,0.27215939,675.82,674.78,0.29639289]
[1738058865187,0.27215939,675.83,674.78,0.29639289]
[1738058865388,0.27215939,675.82,674.78,0.29639289]
[1738058865693,0.27215939,675.81,674.78,0.29639289]
[1738058865889,0.27215939,675.8,674.78,0.29639289]
[1738058866089,0.27215939,675.83,674.78,0.29639289]
[1738058866290,1.54606542,675.84,674.78,0.29639289]
[1738058866490,0.27216137,675.83,674.78,0.29639289]
[1738058868186,0.27216137,675.83,674.47,1.10786571]
[1738058868390,0.29593678,675.82,674.47,1.10786571]
[1738058868591,0.27216137,675.81,674.47,1.10786571]
[1738058868891,0.29594554,675.8,674.44,1.10786571]
[1738058869091,0.27216137,675.79,674.44,1.10786571]
[1738058869291,0.2959543,675.78,674.44,1.10786571]
[1738058869590,0.27216137,675.77,674.44,1.10786571]
[1738058869993,1.54631731,675.76,674.44,1.10786571]
[1738058870192,0.27216137,675.75,674.44,1.10786571]
[1738058871193,1.54631731,675.76,674.44,1.10786571]
[1738058871386,0.27220479,675.75,674.44,1.10786571]
[1738058871695,0.27220479,675.75,674.17,1.10786571]
[1738058871893,0.27220479,675.75,674.19,0.29665227]